[Event "African Games Rapid Open 2019"]
[Site "Casablanca"]
[Date "2019.08.27"]
[Round "9.10"]
[White "Osunfuyi, Abimbola"]
[Black "Mphungu, Gerrard"]
[Result "0-1"]
[ECO "D02"]
[WhiteElo "2235"]
[BlackElo "2107"]
[Annotator "NA"]
[PlyCount "107"]
[EventDate "2019.08.26"]
[EventType "team-tourn"]
[EventCountry "MAR"]
[SourceTitle "playchess.com"]
[Source "ChessBase"]
[SourceQuality "1"]
[TimeControl "900+10"]

1. d4 {[%emt 0:00:00]} d5 {[%emt 0:00:00]} 2. Nf3 {[%emt 0:00:00]} Nf6 {[%emt 0:00:00]} 3. g3 {[%emt 0:00:00]} Bf5 {[%emt 0:00:00]} 4. Bg2 {[%emt 0:00:00]} c6 {[%emt 0:00:02]} 5. c4 {[%emt 0:00:05]} e6 {[%emt 0:00:01]} 6. Qb3 {[%emt 0:00:02]} Qb6 {[%emt 0:00:04]} 7. c5 {[%emt 0:00:03]} Qxb3 {[%emt 0:00:03]} 8. axb3 {[%emt 0:00:01]} Nbd7 {[%emt 0:00:04]} 9. Nc3 {[%emt 0:00:10]} a6 {[%emt 0:00:03]} 10. b4 {[%emt 0:00:02]} Rc8 {[%emt 0:00:04]} 11. Nh4 {[%emt 0:00:25]} Be7 {[%emt 0:00:49]} 12. f3 {[%emt 0:00:22]} h6 {[%emt 0:01:32]} 13. Nxf5 {[%emt 0:00:12]} exf5 {[%emt 0:00:02]} 14. h4 {[%emt 0:00:11]} h5 {[%emt 0:00:11]} 15. Kf2 {[%emt 0:00:34]} O-O {[%emt 0:00:17]} 16. Bf4 {[%emt 0:00:08]} Rfe8 {[%emt 0:00:29]} 17. e3 {[%emt 0:01:09]} Bf8 {[%emt 0:00:16]} 18. Bf1 {[%emt 0:00:03]} g6 {[%emt 0:00:07]} 19. Bd3 {[%emt 0:00:31]} Kh7 {[%emt 0:00:17]} 20. Bg5 {[%emt 0:00:31]} Bh6 {[%emt 0:00:09]} 21. Ne2 {[%emt 0:00:04]} Kg7 {[%emt 0:00:12]} 22. Nf4 {[%emt 0:00:10]} Ra8 {[%emt 0:01:11]} 23. Ra3 {[%emt 0:00:16]} Rac8 {[%emt 0:00:34]} 24. Nh3 {[%emt 0:00:12]} Ra8 {[%emt 0:00:14]} 25. Rha1 {[%emt 0:00:15]} Rac8 {[%emt 0:00:06]} 26. Bf1 {[%emt 0:00:41]} Nh7 {[%emt 0:00:12]} 27. Bf4 {[%emt 0:00:10]} Bxf4 {[%emt 0:00:10]} 28. gxf4 {[%emt 0:00:40]} Nhf6 {[%emt 0:00:04]} 29. Ng1 {[%emt 0:00:05]} Re7 {[%emt 0:00:05]} 30. Ne2 {[%emt 0:00:25]} Ne8 {[%emt 0:00:30]} 31. Nc1 {[%emt 0:00:10]} Nc7 {[%emt 0:00:17]} 32. Nb3 {[%emt 0:00:06]} Nf6 {[%emt 0:00:58]} 33. Na5 {[%emt 0:00:21]} Rb8 {[%emt 0:00:06]} 34. Bd3 {[%emt 0:00:22]} Kf8 {[%emt 0:00:12]} 35. Nb3 {[%emt 0:00:11]} Rbe8 {[%emt 0:00:11]} 36. Re1 {[%emt 0:00:02]} Ne6 {[%emt 0:00:08]} 37. Re2 {[%emt 0:00:26]} Kg7 {[%emt 0:00:07]} 38. Nd2 {[%emt 0:00:23]} Kf8 {[%emt 0:00:24]} 39. Nf1 {[%emt 0:00:03]} Kg8 {[%emt 0:00:27]} 40. Ng3 {[%emt 0:00:03]} Ng7 {[%emt 0:00:16]} 41. Re1 {[%emt 0:01:11]} Ne6 {[%emt 0:00:05]} 42. Rg1 {[%emt 0:01:20]} Kh8 {[%emt 0:01:12]} 43. Rga1 {[%emt 0:01:33]} Nc7 {[%emt 0:00:22]} 44. Bxf5 {[%emt 0:01:56]} Nb5 {[%emt 0:00:41]} 45. R3a2 {[%emt 0:00:37]} Rxe3 {[%emt 0:01:16]} 46. Ne4 {[%emt 0:01:02]} dxe4 {[%emt 0:00:21]} 47. Kxe3 {[%emt 0:00:10]} exf3+ {[%emt 0:00:06]} 48. Kd3 {[%emt 0:00:20]} gxf5 {[%emt 0:01:45]} 49. Rf1 {[%emt 0:00:08]} Nd5 {[%emt 0:00:10]} 50. Raa1 {[%emt 0:00:06]} Re3+ {[%emt 0:00:07]} 51. Kc4 {[%emt 0:00:10]} Re4 {[%emt 0:01:04]} 52. Rxf3 {[%emt 0:00:05]} Rxd4+ {[%emt 0:00:03]} 53. Kb3 {[%emt 0:00:03]} Rxb4+ {[%emt 0:00:13]} 54. Kc2 0-1

[Event "African Games Rapid Open 2019"]
[Site "Casablanca"]
[Date "2019.08.27"]
[Round "9.11"]
[White "Elarabi, Abobker Mohamed"]
[Black "Mesfin, Leykun"]
[Result "0-1"]
[ECO "D71"]
[WhiteElo "2326"]
[BlackElo "2151"]
[Annotator "NA"]
[PlyCount "56"]
[EventDate "2019.08.26"]
[EventType "team-tourn"]
[EventCountry "MAR"]
[SourceTitle "playchess.com"]
[Source "ChessBase"]
[SourceQuality "1"]
[TimeControl "900+10"]

1. d4 {[%emt 0:00:00]} Nf6 {[%emt 0:00:00]} 2. c4 {[%emt 0:00:00]} g6 {[%emt 0:00:00]} 3. g3 {[%emt 0:00:08]} Bg7 {[%emt 0:00:00]} 4. Bg2 {[%emt 0:00:01]} c5 {[%emt 0:00:17]} 5. d5 {[%emt 0:00:27]} d6 {[%emt 0:00:04]} 6. Nc3 {[%emt 0:00:02]} O-O {[%emt 0:00:02]} 7. Nf3 {[%emt 0:00:22]} e5 {[%emt 0:00:07]} 8. dxe6 {[%emt 0:00:23]} Bxe6 {[%emt 0:00:02]} 9. Qd3 {[%emt 0:01:23]} Nc6 {[%emt 0:00:08]} 10. Nd2 {[%emt 0:01:40]} Ne5 {[%emt 0:01:29]} 11. Qc2 {[%emt 0:00:03]} Nxc4 {[%emt 0:00:39]} 12. Nxc4 {[%emt 0:00:10]} Bxc4 {[%emt 0:00:02]} 13. Bxb7 {[%emt 0:00:04]} Rb8 {[%emt 0:00:13]} 14. Bf3 {[%emt 0:00:02]} Be6 {[%emt 0:00:18]} 15. O-O {[%emt 0:00:08]} d5 {[%emt 0:00:06]} 16. Bf4 {[%emt 0:01:23]} Rc8 {[%emt 0:00:04]} 17. Rfd1 {[%emt 0:00:18]} d4 {[%emt 0:00:03]} 18. Nb5 {[%emt 0:00:51]} Qb6 {[%emt 0:00:36]} 19. a4 {[%emt 0:00:47]} Nd5 {[%emt 0:00:31]} 20. Bxd5 {[%emt 0:01:49]} Bxd5 {[%emt 0:00:03]} 21. e4 {[%emt 0:00:29]} Ba8 {[%emt 0:00:17]} 22. Nd6 {[%emt 0:00:28]} Rcd8 {[%emt 0:00:10]} 23. Nc4 {[%emt 0:00:08]} Qe6 {[%emt 0:00:18]} 24. Nd2 {[%emt 0:00:28]} Rc8 {[%emt 0:00:25]} 25. Rac1 {[%emt 0:00:16]} c4 {[%emt 0:01:16]} 26. Nxc4 {[%emt 0:02:18]} Rxc4 {[%emt 0:00:52]} 27. Qxc4 {[%emt 0:00:08]} Qxe4 {[%emt 0:00:02]} 28. Kf1 {[%emt 0:01:12]} Re8 {[%emt 0:01:46]} 0-1

[Event "African Games Rapid Open 2019"]
[Site "Casablanca"]
[Date "2019.08.27"]
[Round "9.12"]
[White "Oatlhotse, Providence"]
[Black "Gole, Habtamu Ashenafi"]
[Result "1-0"]
[ECO "A15"]
[WhiteElo "2252"]
[BlackElo "2046"]
[Annotator "NA"]
[PlyCount "141"]
[EventDate "2019.08.26"]
[EventType "team-tourn"]
[EventCountry "MAR"]
[SourceTitle "playchess.com"]
[Source "ChessBase"]
[SourceQuality "1"]
[TimeControl "900+10"]

1. c4 {[%emt 0:00:02]} Nf6 {[%emt 0:00:00]} 2. g3 {[%emt 0:00:01]} e6 {[%emt 0:00:00]} 3. Bg2 {[%emt 0:00:01]} c6 {[%emt 0:00:00]} 4. Nf3 {[%emt 0:00:03]} d5 {[%emt 0:00:00]} 5. O-O {[%emt 0:00:02]} Be7 {[%emt 0:00:00]} 6. b3 {[%emt 0:00:12]} Nbd7 {[%emt 0:00:00]} 7. Bb2 {[%emt 0:00:02]} a5 {[%emt 0:00:01]} 8. Nc3 {[%emt 0:00:03]} O-O {[%emt 0:00:02]} 9. d3 {[%emt 0:00:09]} Re8 {[%emt 0:00:42]} 10. Qc2 {[%emt 0:00:23]} h6 {[%emt 0:00:22]} 11. Rad1 {[%emt 0:00:08]} Nf8 {[%emt 0:00:40]} 12. d4 {[%emt 0:00:38]} Ng6 {[%emt 0:00:14]} 13. e4 {[%emt 0:00:06]} dxe4 {[%emt 0:00:05]} 14. Ne5 {[%emt 0:00:20]} Nf8 {[%emt 0:00:30]} 15. Nxe4 {[%emt 0:00:11]} Qc7 {[%emt 0:00:36]} 16. c5 {[%emt 0:00:33]} Nd5 {[%emt 0:00:16]} 17. a3 {[%emt 0:00:45]} Nd7 {[%emt 0:01:39]} 18. Nc4 {[%emt 0:00:12]} N7f6 {[%emt 0:00:12]} 19. Ned6 {[%emt 0:00:20]} Rf8 {[%emt 0:00:33]} 20. Rfe1 {[%emt 0:00:09]} Qb8 {[%emt 0:01:29]} 21. Ne4 {[%emt 0:00:50]} Bd7 {[%emt 0:00:33]} 22. Rc1 {[%emt 0:00:02]} Qc7 {[%emt 0:00:26]} 23. Red1 {[%emt 0:00:31]} Rfd8 {[%emt 0:00:25]} 24. Bc3 {[%emt 0:00:23]} Nxc3 {[%emt 0:00:11]} 25. Qxc3 {[%emt 0:00:10]} Nd5 {[%emt 0:00:01]} 26. Qe1 {[%emt 0:00:12]} a4 {[%emt 0:00:11]} 27. b4 {[%emt 0:00:06]} f5 {[%emt 0:01:25]} 28. Ned6 {[%emt 0:00:23]} Bf6 {[%emt 0:00:02]} 29. Ne5 {[%emt 0:00:15]} b5 {[%emt 0:00:38]} 30. Ndf7 {[%emt 0:01:35]} Rf8 {[%emt 0:00:28]} 31. Nxd7 {[%emt 0:00:09]} Qxd7 {[%emt 0:00:20]} 32. Ne5 {[%emt 0:00:03]} Qe8 {[%emt 0:00:23]} 33. f4 {[%emt 0:00:20]} Rc8 {[%emt 0:00:01]} 34. Qe2 {[%emt 0:00:41]} g5 {[%emt 0:00:53]} 35. Bxd5 {[%emt 0:00:26]} exd5 {[%emt 0:00:07]} 36. Re1 {[%emt 0:00:20]} gxf4 {[%emt 0:00:57]} 37. gxf4 {[%emt 0:00:04]} Kh7 {[%emt 0:00:16]} 38. Kh1 {[%emt 0:00:11]} Rc7 {[%emt 0:00:42]} 39. Rg1 {[%emt 0:00:37]} Rg7 {[%emt 0:00:07]} 40. Rxg7+ {[%emt 0:00:09]} Bxg7 {[%emt 0:00:01]} 41. Rg1 {[%emt 0:00:03]} Bf6 {[%emt 0:01:21]} 42. Qd3 {[%emt 0:00:21]} Bxe5 {[%emt 0:01:32]} 43. Re1 {[%emt 0:04:54]} Qg6 {[%emt 0:00:51]} 44. Rxe5 {[%emt 0:00:16]} Qg4 {[%emt 0:00:51]} 45. Re7+ {[%emt 0:03:48]} Kh8 {[%emt 0:00:16]} 46. Qg3 {[%emt 0:01:16]} Qd1+ {[%emt 0:00:15]} 47. Re1 {[%emt 0:00:01]} Qxd4 {[%emt 0:00:05]} 48. Qh4 {[%emt 0:00:19]} Qf6 {[%emt 0:00:10]} 49. Qxf6+ {[%emt 0:00:09]} Rxf6 {[%emt 0:00:01]} 50. Kg2 {[%emt 0:00:05]} Kg7 {[%emt 0:00:03]} 51. Re7+ {[%emt 0:00:07]} Kf8 {[%emt 0:00:14]} 52. Re5 {[%emt 0:00:12]} Kf7 {[%emt 0:00:03]} 53. Kf3 {[%emt 0:00:08]} h5 {[%emt 0:00:05]} 54. Kf2 {[%emt 0:00:16]} Kg6 {[%emt 0:00:15]} 55. Re7 {[%emt 0:00:10]} h4 {[%emt 0:00:10]} 56. Kf3 {[%emt 0:00:08]} Rf7 {[%emt 0:00:08]} 57. Re6+ {[%emt 0:00:05]} Rf6 {[%emt 0:00:01]} 58. Re7 {[%emt 0:00:03]} Kh6 {[%emt 0:00:15]} 59. Rd7 {[%emt 0:00:24]} Kh5 {[%emt 0:00:12]} 60. Rh7+ {[%emt 0:00:11]} Kg6 {[%emt 0:00:05]} 61. Rxh4 {[%emt 0:00:09]} Re6 {[%emt 0:00:00]} 62. Rh8 {[%emt 0:00:08]} Re1 {[%emt 0:00:24]} 63. Rc8 {[%emt 0:00:06]} Ra1 {[%emt 0:00:27]} 64. Rxc6+ {[%emt 0:00:02]} Kh5 {[%emt 0:00:00]} 65. Rb6 {[%emt 0:00:18]} Rxa3+ {[%emt 0:00:02]} 66. Ke2 {[%emt 0:00:10]} Kg4 {[%emt 0:00:19]} 67. Rxb5 {[%emt 0:00:06]} Kxf4 {[%emt 0:00:06]} 68. c6 {[%emt 0:00:13]} Ke4 {[%emt 0:00:04]} 69. c7 {[%emt 0:00:14]} Ra2+ {[%emt 0:00:01]} 70. Kd1 {[%emt 0:00:03]} Kd3 {[%emt 0:00:26]} 71. Rxd5+ {[%emt 0:00:09]} 1-0

[Event "African Games Rapid Open 2019"]
[Site "Casablanca"]
[Date "2019.08.27"]
[Round "9.13"]
[White "Ebosse, Kingue Victor Patric"]
[Black "Mushore, Emarald Takudzwa"]
[Result "0-1"]
[ECO "C77"]
[WhiteElo "2055"]
[BlackElo "2198"]
[Annotator "NA"]
[PlyCount "96"]
[EventDate "2019.08.26"]
[EventType "team-tourn"]
[EventCountry "MAR"]
[SourceTitle "playchess.com"]
[Source "ChessBase"]
[SourceQuality "1"]
[TimeControl "900+10"]

1. e4 {[%emt 0:00:00]} e5 {[%emt 0:00:00]} 2. Nf3 {[%emt 0:00:00]} Nc6 {[%emt 0:00:00]} 3. Bb5 {[%emt 0:00:00]} a6 {[%emt 0:00:00]} 4. Ba4 {[%emt 0:00:01]} Nf6 {[%emt 0:00:00]} 5. d3 {[%emt 0:00:01]} d6 {[%emt 0:00:00]} 6. O-O g6 7. c3 {[%emt 0:00:06]} Bg7 {[%emt 0:00:00]} 8. Ng5 {[%emt 0:01:05]} h6 {[%emt 0:00:09]} 9. Nf3 {[%emt 0:00:24]} O-O 10. h3 Bd7 {[%emt 0:00:04]} 11. Be3 {[%emt 0:00:01]} Qe7 {[%emt 0:00:03]} 12. Re1 {[%emt 0:00:07]} Kh7 {[%emt 0:00:02]} 13. Nbd2 {[%emt 0:00:03]} Nd8 {[%emt 0:00:12]} 14. d4 {[%emt 0:00:47]} exd4 {[%emt 0:00:51]} 15. cxd4 {[%emt 0:00:25]} Rc8 {[%emt 0:00:26]} 16. Bb3 {[%emt 0:00:10]} Be6 {[%emt 0:00:04]} 17. d5 {[%emt 0:00:32]} Bd7 {[%emt 0:00:02]} 18. Bd4 {[%emt 0:00:12]} c5 {[%emt 0:00:50]} 19. Bc3 {[%emt 0:00:16]} b5 {[%emt 0:00:02]} 20. e5 {[%emt 0:00:27]} Nh5 {[%emt 0:00:15]} 21. exd6 {[%emt 0:00:15]} Qxd6 {[%emt 0:00:01]} 22. Ne4 {[%emt 0:00:42]} Qb6 {[%emt 0:00:30]} 23. Bxg7 {[%emt 0:00:29]} Kxg7 {[%emt 0:00:10]} 24. Qd2 {[%emt 0:01:07]} Nf6 {[%emt 0:01:05]} 25. Qf4 {[%emt 0:02:03]} Nxe4 {[%emt 0:00:06]} 26. Rxe4 {[%emt 0:00:13]} Qf6 {[%emt 0:00:12]} 27. Qe3 {[%emt 0:01:32]} Nb7 {[%emt 0:00:07]} 28. Re1 {[%emt 0:01:47]} Rfe8 {[%emt 0:01:50]} 29. Re7 {[%emt 0:01:42]} Nd6 {[%emt 0:00:04]} 30. Qe5 {[%emt 0:00:21]} Qxe5 {[%emt 0:01:25]} 31. R1xe5 {[%emt 0:00:17]} Rcd8 {[%emt 0:00:11]} 32. g4 {[%emt 0:00:53]} Kf6 {[%emt 0:00:03]} 33. Rxe8 {[%emt 0:00:17]} Rxe8 {[%emt 0:00:01]} 34. Rxe8 {[%emt 0:00:03]} Bxe8 {[%emt 0:00:04]} 35. h4 {[%emt 0:00:10]} Bd7 {[%emt 0:00:07]} 36. g5+ {[%emt 0:00:08]} hxg5 {[%emt 0:00:01]} 37. hxg5+ {[%emt 0:00:10]} Kf5 {[%emt 0:00:01]} 38. Bc2+ {[%emt 0:00:36]} Kf4 {[%emt 0:00:02]} 39. Kg2 {[%emt 0:00:33]} Bh3+ {[%emt 0:00:02]} 40. Kxh3 {[%emt 0:00:03]} Kxf3 {[%emt 0:00:01]} 41. a4 {[%emt 0:01:18]} Kxf2 {[%emt 0:00:05]} 42. axb5 {[%emt 0:00:02]} axb5 {[%emt 0:00:01]} 43. Kg4 {[%emt 0:00:05]} Ke3 {[%emt 0:00:01]} 44. Bd1 {[%emt 0:00:16]} Nc4 {[%emt 0:00:10]} 45. Bb3 {[%emt 0:00:41]} Nd6 {[%emt 0:00:26]} 46. Ba2 {[%emt 0:00:17]} c4 {[%emt 0:00:02]} 47. b4 {[%emt 0:00:11]} Ke4 {[%emt 0:00:11]} 48. Bb1+ {[%emt 0:00:23]} Kxd5 {[%emt 0:00:01]} 0-1

[Event "African Games Rapid Open 2019"]
[Site "Casablanca"]
[Date "2019.08.27"]
[Round "9.14"]
[White "Traore, Bakary"]
[Black "Kouya, Tyeoulou Bernardin F"]
[Result "1-0"]
[ECO "B98"]
[WhiteElo "2189"]
[BlackElo "1770"]
[Annotator "NA"]
[PlyCount "85"]
[EventDate "2019.08.26"]
[EventType "team-tourn"]
[EventCountry "MAR"]
[SourceTitle "playchess.com"]
[Source "ChessBase"]
[SourceQuality "1"]
[TimeControl "900+10"]

1. e4 {[%emt 0:00:00]} c5 {[%emt 0:00:00]} 2. Nf3 {[%emt 0:00:00]} d6 {[%emt 0:00:00]} 3. d4 {[%emt 0:00:00]} cxd4 {[%emt 0:00:00]} 4. Nxd4 {[%emt 0:00:00]} Nf6 {[%emt 0:00:00]} 5. Nc3 {[%emt 0:00:00]} a6 {[%emt 0:00:00]} 6. Bg5 {[%emt 0:00:01]} e6 {[%emt 0:00:00]} 7. f4 {[%emt 0:00:02]} Be7 {[%emt 0:00:01]} 8. Qf3 {[%emt 0:00:01]} Qc7 {[%emt 0:00:24]} 9. O-O-O {[%emt 0:00:06]} b5 {[%emt 0:00:07]} 10. g4 {[%emt 0:00:11]} Bb7 {[%emt 0:00:10]} 11. a3 {[%emt 0:00:09]} Nc6 {[%emt 0:00:11]} 12. Bxf6 {[%emt 0:01:23]} gxf6 {[%emt 0:00:08]} 13. f5 {[%emt 0:00:11]} Nxd4 {[%emt 0:00:19]} 14. Rxd4 {[%emt 0:00:02]} Rc8 {[%emt 0:00:16]} 15. Be2 {[%emt 0:01:02]} Qc5 {[%emt 0:00:11]} 16. Rhd1 {[%emt 0:00:04]} d5 {[%emt 0:00:55]} 17. fxe6 {[%emt 0:00:21]} fxe6 {[%emt 0:00:09]} 18. exd5 {[%emt 0:00:09]} Bxd5 {[%emt 0:00:06]} 19. Qd3 {[%emt 0:00:34]} Bc4 {[%emt 0:00:18]} 20. Qd2 {[%emt 0:00:22]} Bxe2 {[%emt 0:00:13]} 21. Qxe2 {[%emt 0:00:05]} Kf7 {[%emt 0:00:06]} 22. Ne4 {[%emt 0:00:33]} Qe5 {[%emt 0:00:41]} 23. Rd7 {[%emt 0:00:20]} Rhd8 {[%emt 0:01:47]} 24. Nd6+ {[%emt 0:00:35]} Kf8 {[%emt 0:00:15]} 25. Qxe5 {[%emt 0:00:04]} fxe5 {[%emt 0:00:30]} 26. Nxc8 {[%emt 0:00:24]} Rxc8 {[%emt 0:00:02]} 27. Ra7 {[%emt 0:00:23]} Kf7 {[%emt 0:00:48]} 28. Rf1+ {[%emt 0:00:16]} Ke8 {[%emt 0:00:13]} 29. Rxa6 {[%emt 0:00:04]} Bg5+ {[%emt 0:00:03]} 30. Kb1 {[%emt 0:00:02]} Ke7 {[%emt 0:00:01]} 31. Ra7+ {[%emt 0:00:04]} Kd6 {[%emt 0:00:01]} 32. Rd1+ {[%emt 0:00:04]} Kc5 {[%emt 0:00:03]} 33. Rxh7 {[%emt 0:00:03]} e4 {[%emt 0:00:07]} 34. h4 {[%emt 0:00:02]} Bf6 {[%emt 0:00:06]} 35. Rh6 {[%emt 0:00:02]} Rf8 {[%emt 0:00:03]} 36. g5 {[%emt 0:00:02]} Bd4 {[%emt 0:00:08]} 37. Rxe6 {[%emt 0:00:04]} e3 {[%emt 0:00:01]} 38. Re1 {[%emt 0:00:12]} Kd5 {[%emt 0:00:08]} 39. R6xe3 {[%emt 0:00:03]} Bxe3 {[%emt 0:00:02]} 40. Rxe3 {[%emt 0:00:01]} Rf4 {[%emt 0:00:03]} 41. Rg3 {[%emt 0:00:05]} Ke6 {[%emt 0:00:03]} 42. h5 {[%emt 0:00:02]} Rh4 {[%emt 0:00:01]} 43. g6 {[%emt 0:00:02]} 1-0

[Event "African Games Rapid Open 2019"]
[Site "Casablanca"]
[Date "2019.08.27"]
[Round "9.15"]
[White "Gohil, Mehul"]
[Black "Hassan, Sidi Mohamed cheikh"]
[Result "1-0"]
[ECO "A40"]
[WhiteElo "2076"]
[BlackElo "1752"]
[Annotator "NA"]
[PlyCount "53"]
[EventDate "2019.08.26"]
[EventType "team-tourn"]
[EventCountry "MAR"]
[SourceTitle "playchess.com"]
[Source "ChessBase"]
[SourceQuality "1"]
[TimeControl "900+10"]

1. d4 {[%emt 0:00:00]} e6 {[%emt 0:00:00]} 2. c4 {[%emt 0:00:00]} f5 {[%emt 0:00:00]} 3. Nf3 {[%emt 0:00:12]} Nf6 {[%emt 0:00:00]} 4. e3 {[%emt 0:00:03]} b6 {[%emt 0:00:05]} 5. Nc3 {[%emt 0:00:06]} Bb4 {[%emt 0:00:08]} 6. Bd3 {[%emt 0:00:21]} Bb7 {[%emt 0:00:02]} 7. O-O {[%emt 0:00:02]} O-O {[%emt 0:00:06]} 8. Qc2 {[%emt 0:00:03]} d6 {[%emt 0:00:13]} 9. a3 {[%emt 0:00:07]} Bxc3 {[%emt 0:00:01]} 10. Qxc3 {[%emt 0:00:04]} Nbd7 {[%emt 0:00:07]} 11. b4 {[%emt 0:00:04]} Ne4 {[%emt 0:00:02]} 12. Qc2 {[%emt 0:00:03]} Rf6 {[%emt 0:00:16]} 13. Bb2 {[%emt 0:00:07]} Rg6 {[%emt 0:00:21]} 14. Ne1 {[%emt 0:00:37]} Qh4 {[%emt 0:02:41]} 15. f3 {[%emt 0:00:40]} Ng5 {[%emt 0:00:39]} 16. d5 {[%emt 0:03:09]} Rh6 {[%emt 0:03:59]} 17. g3 {[%emt 0:00:27]} Nh3+ {[%emt 0:01:01]} 18. Kh1 {[%emt 0:00:11]} Qh5 {[%emt 0:00:33]} 19. dxe6 {[%emt 0:00:22]} Rxe6 {[%emt 0:01:07]} 20. Bxf5 {[%emt 0:03:07]} Rxe3 {[%emt 0:01:02]} 21. Bxd7 {[%emt 0:01:42]} Rxf3 {[%emt 0:00:35]} 22. Nxf3 {[%emt 0:00:55]} Bxf3+ {[%emt 0:00:17]} 23. Rxf3 {[%emt 0:00:03]} Qxf3+ {[%emt 0:00:02]} 24. Qg2 {[%emt 0:00:02]} Nf2+ {[%emt 0:01:47]} 25. Kg1 {[%emt 0:00:04]} Rf8 {[%emt 0:02:42]} 26. Qxf3 {[%emt 0:00:09]} Rxf3 {[%emt 0:00:05]} 27. Rf1 {[%emt 0:00:12]} 1-0

[Event "African Games Rapid Open 2019"]
[Site "Casablanca"]
[Date "2019.08.27"]
[Round "9.16"]
[White "Beukes, Dante M"]
[Black "Rita, Jeorciley"]
[Result "1-0"]
[ECO "C42"]
[WhiteElo "2130"]
[BlackElo "1920"]
[Annotator "NA"]
[PlyCount "86"]
[EventDate "2019.08.26"]
[EventType "team-tourn"]
[EventCountry "MAR"]
[SourceTitle "playchess.com"]
[Source "ChessBase"]
[SourceQuality "1"]
[TimeControl "900+10"]

1. e4 {[%emt 0:00:00]} e5 {[%emt 0:00:00]} 2. Nf3 {[%emt 0:00:02]} Nf6 {[%emt 0:00:00]} 3. Nxe5 {[%emt 0:00:10]} d6 {[%emt 0:00:00]} 4. Nf3 {[%emt 0:00:03]} Nxe4 {[%emt 0:00:00]} 5. d4 {[%emt 0:00:11]} d5 {[%emt 0:00:02]} 6. Bd3 {[%emt 0:00:02]} Bf5 {[%emt 0:00:12]} 7. O-O {[%emt 0:00:08]} Bd6 {[%emt 0:00:03]} 8. Re1 {[%emt 0:00:59]} O-O {[%emt 0:00:05]} 9. Nbd2 {[%emt 0:00:02]} Re8 {[%emt 0:00:47]} 10. c3 {[%emt 0:01:14]} c6 {[%emt 0:00:16]} 11. Qc2 {[%emt 0:01:20]} Nxd2 {[%emt 0:01:46]} 12. Rxe8+ {[%emt 0:00:27]} Qxe8 {[%emt 0:00:05]} 13. Bxd2 {[%emt 0:00:29]} Bxd3 {[%emt 0:00:13]} 14. Qxd3 {[%emt 0:00:01]} f6 {[%emt 0:00:10]} 15. Re1 {[%emt 0:00:13]} Qf7 {[%emt 0:00:02]} 16. Nh4 {[%emt 0:01:01]} g6 {[%emt 0:00:07]} 17. Qe2 {[%emt 0:00:55]} Na6 {[%emt 0:00:35]} 18. Qe6 {[%emt 0:00:50]} Rd8 {[%emt 0:00:03]} 19. Nf3 {[%emt 0:00:34]} Nc7 {[%emt 0:01:28]} 20. Qxf7+ {[%emt 0:00:32]} Kxf7 {[%emt 0:00:03]} 21. Re2 {[%emt 0:00:21]} Re8 {[%emt 0:01:00]} 22. Kf1 {[%emt 0:00:01]} Rxe2 {[%emt 0:00:09]} 23. Kxe2 {[%emt 0:00:02]} Ne6 {[%emt 0:00:40]} 24. g3 {[%emt 0:00:04]} g5 {[%emt 0:01:15]} 25. Ne1 {[%emt 0:01:08]} Kg6 {[%emt 0:01:29]} 26. Kf3 {[%emt 0:00:58]} Nf8 {[%emt 0:01:35]} 27. Nd3 {[%emt 0:01:24]} Nd7 {[%emt 0:00:09]} 28. b3 {[%emt 0:00:57]} h6 {[%emt 0:01:09]} 29. c4 {[%emt 0:01:11]} dxc4 {[%emt 0:01:20]} 30. bxc4 {[%emt 0:00:02]} c5 {[%emt 0:00:05]} 31. Ke4 {[%emt 0:00:56]} cxd4 {[%emt 0:00:37]} 32. Kxd4 {[%emt 0:00:20]} Be5+ {[%emt 0:00:41]} 33. Ke4 {[%emt 0:01:12]} Nb6 {[%emt 0:02:09]} 34. Nxe5+ {[%emt 0:00:43]} fxe5 {[%emt 0:00:05]} 35. c5 {[%emt 0:00:07]} Nd7 {[%emt 0:00:45]} 36. Kd5 {[%emt 0:01:00]} e4 {[%emt 0:00:51]} 37. Kd6 {[%emt 0:00:20]} Nf8 {[%emt 0:00:28]} 38. Be3 {[%emt 0:00:03]} Kf5 {[%emt 0:00:39]} 39. Kc7 {[%emt 0:00:26]} Ne6+ {[%emt 0:00:14]} 40. Kxb7 {[%emt 0:00:04]} a5 {[%emt 0:00:03]} 41. h3 {[%emt 0:00:26]} h5 {[%emt 0:00:09]} 42. c6 {[%emt 0:00:06]} g4 {[%emt 0:00:19]} 43. hxg4+ {[%emt 0:00:04]} hxg4 1-0

[Event "African Games Rapid Open 2019"]
[Site "Casablanca"]
[Date "2019.08.27"]
[Round "9.17"]
[White "Eichab, Charles"]
[Black "Amba, Oyon Marius Claude"]
[Result "1-0"]
[ECO "A01"]
[WhiteElo "2016"]
[BlackElo "1911"]
[Annotator "NA"]
[PlyCount "97"]
[EventDate "2019.08.26"]
[EventType "team-tourn"]
[EventCountry "MAR"]
[SourceTitle "playchess.com"]
[Source "ChessBase"]
[SourceQuality "1"]
[TimeControl "900+10"]

1. b3 {[%emt 0:00:08]} d5 {[%emt 0:00:00]} 2. e3 {[%emt 0:00:02]} c5 {[%emt 0:00:00]} 3. Bb2 {[%emt 0:00:02]} Nc6 {[%emt 0:00:02]} 4. Bb5 {[%emt 0:00:02]} Nf6 {[%emt 0:00:03]} 5. f4 {[%emt 0:00:15]} e6 {[%emt 0:00:14]} 6. Nf3 {[%emt 0:00:02]} Be7 {[%emt 0:00:01]} 7. Bxc6+ {[%emt 0:00:15]} bxc6 {[%emt 0:00:02]} 8. Ne5 {[%emt 0:00:02]} Qb6 {[%emt 0:00:16]} 9. O-O {[%emt 0:00:26]} a5 {[%emt 0:00:05]} 10. Nc3 {[%emt 0:00:37]} Ba6 {[%emt 0:00:33]} 11. d3 {[%emt 0:00:03]} Bb5 {[%emt 0:00:11]} 12. a4 {[%emt 0:01:07]} Ba6 {[%emt 0:00:02]} 13. Qf3 {[%emt 0:00:01]} Rc8 {[%emt 0:00:34]} 14. Ba3 {[%emt 0:03:10]} d4 {[%emt 0:01:18]} 15. Ne4 {[%emt 0:00:45]} Nxe4 {[%emt 0:00:04]} 16. Qxe4 {[%emt 0:00:38]} Qc7 {[%emt 0:01:28]} 17. exd4 cxd4 {[%emt 0:00:08]} 18. Bxe7 {[%emt 0:02:29]} Kxe7 {[%emt 0:00:10]} 19. Qxd4 {[%emt 0:00:10]} c5 {[%emt 0:00:41]} 20. Qc3 {[%emt 0:00:22]} Bb7 {[%emt 0:00:26]} 21. Rae1 {[%emt 0:00:33]} Rhe8 {[%emt 0:01:03]} 22. f5 {[%emt 0:00:37]} f6 {[%emt 0:00:25]} 23. fxe6 {[%emt 0:00:16]} Rf8 {[%emt 0:00:31]} 24. Nd7 {[%emt 0:00:49]} Qc6 {[%emt 0:01:15]} 25. Rf2 {[%emt 0:00:40]} h5 {[%emt 0:00:58]} 26. Nxf8 {[%emt 0:01:59]} Rxf8 {[%emt 0:00:02]} 27. Re4 {[%emt 0:00:18]} Qc7 {[%emt 0:00:25]} 28. Rc4 {[%emt 0:00:08]} Rc8 {[%emt 0:00:22]} 29. d4 {[%emt 0:00:03]} Qd6 {[%emt 0:00:42]} 30. Rxc5 {[%emt 0:00:09]} Qxe6 {[%emt 0:00:57]} 31. Rc7+ {[%emt 0:00:49]} Kd8 {[%emt 0:00:39]} 32. Rxc8+ {[%emt 0:00:04]} Bxc8 {[%emt 0:00:01]} 33. Qxa5+ {[%emt 0:00:14]} Ke7 {[%emt 0:00:27]} 34. Qc5+ {[%emt 0:00:39]} Kd8 {[%emt 0:00:17]} 35. d5 {[%emt 0:00:21]} Qe1+ {[%emt 0:00:06]} 36. Rf1 {[%emt 0:00:01]} Qd2 {[%emt 0:00:07]} 37. Qf8+ {[%emt 0:01:18]} Kc7 {[%emt 0:00:05]} 38. Qxg7+ {[%emt 0:00:09]} Bd7 {[%emt 0:00:03]} 39. Qxf6 {[%emt 0:00:22]} Qxd5 {[%emt 0:00:06]} 40. Qf4+ {[%emt 0:00:21]} Kd8 {[%emt 0:00:19]} 41. Qb8+ {[%emt 0:00:08]} Bc8 {[%emt 0:00:46]} 42. h3 {[%emt 0:00:29]} Qc5+ {[%emt 0:00:06]} 43. Kh1 {[%emt 0:00:09]} Ke7 {[%emt 0:00:07]} 44. Re1+ {[%emt 0:00:23]} Kf6 {[%emt 0:00:33]} 45. Qf4+ {[%emt 0:00:06]} Kg6 {[%emt 0:00:22]} 46. Re5 {[%emt 0:00:46]} Qa3 {[%emt 0:01:19]} 47. Rg5+ {[%emt 0:00:05]} Kh6 {[%emt 0:01:07]} 48. Qf6+ {[%emt 0:00:12]} Kh7 {[%emt 0:00:03]} 49. Qg7# 1-0